bitfinex/quotes_ETHUSD_20260113
["timestamp","ask_amount","ask_price","bid_price","bid_amount"]
[1768333470585,3.12111751,3204.0,3203.6,0.001]
[1768333470991,4.36005122,3204.0,3203.6,0.001]
[1768333471909,7.48116873,3204.0,3203.6,0.001]
[1768333472087,1.23893371,3203.9,3203.6,0.001]
[1768333472403,1.26296031,3203.8,3203.6,0.001]
[1768333472610,1.26296031,3203.8,3203.3,0.001]
[1768333473304,1.23893371,3203.8,3203.3,0.001]
[1768333473479,3.12148832,3203.6,3203.3,0.001]
[1768333474088,1.23893371,3203.5,3203.3,0.001]
[1768333474474,1.23893371,3203.5,3202.7,1.25810877]
[1768333475815,4.36059112,3203.5,3202.7,1.25810877]
[1768333476423,7.48224853,3203.5,3202.7,1.25810877]
[1768333476715,1.31890606,3203.4,3202.7,1.25810877]
[1768333476901,6.99153967,3203.5,3202.6,0.246]
[1768333476902,1.31890606,3203.2,3202.6,0.001]
[1768333478054,3.12197558,3203.1,3202.6,0.001]
[1768333478215,7.56285722,3203.1,3202.6,0.001]
[1768333478398,1.31890606,3203.0,3202.6,0.001]
[1768333478710,3.12197558,3203.1,3202.6,0.001]
[1768333479306,3.90275355,3203.1,3202.6,0.001]
[1768333481604,1.31890606,3203.0,3202.6,0.001]
[1768333482819,4.44107659,3202.9,3202.6,0.001]
[1768333483321,7.56324712,3202.9,3202.6,0.001]
[1768333484024,4.44107659,3202.9,3202.6,0.001]
[1768333486224,0.78077797,3203.1,3202.6,0.001]
[1768333486410,3.12202166,3203.1,3202.6,0.001]
[1768333486591,4.44092772,3203.1,3202.6,0.001]
[1768333487235,7.56294938,3203.1,3202.6,0.001]
[1768333487420,4.44092772,3203.1,3202.6,0.001]
[1768333488091,4.44092772,3203.1,3202.9,0.001]
[1768333488286,4.44092772,3203.1,3202.6,0.001]
[1768333488526,3.12202166,3203.1,3202.6,0.001]
[1768333489205,4.44092772,3203.1,3202.6,0.001]
[1768333489525,7.56294938,3203.1,3202.6,0.001]
[1768333490030,4.44092772,3203.1,3202.6,0.001]
[1768333490912,7.56294938,3203.1,3202.6,0.001]
[1768333491793,1.31890606,3203.0,3202.6,0.001]
[1768333491989,1.31890606,3203.0,3202.3,0.00199245]
[1768333493493,1.31890606,3202.8,3202.3,0.00199245]
[1768333496735,3.1223655,3202.7,3202.3,0.00199245]
[1768333497436,4.44127156,3202.7,3202.3,0.00199245]
[1768333499735,4.44127156,3202.7,3202.6,0.001]
[1768333499915,5.19762867,3202.7,3202.3,0.00199245]
[1768333500122,3.87872261,3202.7,3202.3,0.00199245]
[1768333500323,3.1223655,3202.7,3202.3,0.00199245]
[1768333500637,3.12429517,3202.8,3202.3,0.00199245]
[1768333500845,7.5654964,3202.8,3202.3,0.00199245]
[1768333501232,4.44320123,3202.8,3202.3,0.00199245]
[1768333501543,3.12429517,3202.8,3202.3,0.00199245]
[1768333501948,4.44320123,3202.8,3202.3,0.00199245]
[1768333504011,7.5654964,3202.8,3202.3,0.00199245]
[1768333504338,8.32204604,3202.8,3202.3,0.00199245]
[1768333504646,5.19975087,3202.8,3202.3,0.00199245]
[1768333505140,8.32204604,3202.8,3202.3,0.00199245]
[1768333506437,5.19975087,3202.8,3202.3,0.00199245]
[1768333506824,8.32204604,3202.8,3202.3,0.00199245]
[1768333507130,1.2674425,3202.6,3202.3,0.00199245]
[1768333507332,1.2914691,3202.5,3202.1,0.00080024]
[1768333507535,1.2674425,3202.5,3202.1,0.00080024]
[1768333507949,0.002,3202.8,3202.1,1.3490683]
[1768333508112,0.002,3203.1,3202.5,1.34826806]
[1768333508310,3.12207305,3203.0,3202.5,1.34826806]
[1768333508515,3.12398302,3203.1,3202.5,1.34826806]
[1768333508711,6.24596604,3203.1,3202.5,1.34826806]
[1768333509018,6.24596604,3203.1,3202.1,0.00080024]
[1768333509226,6.24596604,3203.1,3202.2,1.34826806]
[1768333509418,7.51340854,3203.1,3202.2,1.34826806]
[1768333510115,4.39142552,3203.1,3202.2,1.34826806]
[1768333510318,0.002,3203.1,3202.3,1.34826806]
[1768333510556,0.002,3203.1,3202.5,1.34826806]
[1768333511046,0.002,3203.1,3202.3,1.34826806]
[1768333511243,1.2694425,3203.1,3202.4,0.15932681]
[1768333511852,0.002,3202.8,3202.4,1.50759487]
[1768333516735,0.002,3202.8,3202.4,0.15932681]
[1768333519361,0.002,3202.8,3202.2,6.20691252]
[1768333519771,0.002,3202.8,3202.2,1.53097707]
[1768333521644,0.002,3202.8,3202.3,1.28597707]
[1768333521835,3.12401728,3203.1,3202.5,5.96191252]
[1768333522042,3.12401728,3203.1,3202.6,1.28597707]
[1768333523249,0.002,3203.1,3202.6,1.28597707]
[1768333523662,0.002,3203.1,3202.7,1.28597707]
[1768333523877,0.002,3203.1,3202.8,4.67593545]
[1768333524038,0.002,3203.1,3202.7,1.28597707]
[1768333524242,0.002,3202.8,3202.6,0.59619125]
[1768333524463,0.002,3202.8,3202.1,5.60428087]
[1768333524662,1.33758666,3202.8,3202.1,4.3183038]
[1768333525265,4.4599074,3202.8,3202.1,4.3183038]
[1768333525854,1.33558666,3202.7,3202.1,0.00080024]
[1768333527250,4.45804965,3202.6,3202.1,0.00080024]
[1768333527548,7.58051264,3202.6,3202.1,0.00080024]
[1768333529075,1.33558666,3202.5,3202.1,0.00080024]
[1768333529288,3.12431546,3202.8,3202.1,0.00080024]
[1768333529289,7.58109768,3202.3,3202.1,0.00080024]
[1768333529494,1.33558666,3202.2,3201.8,1.06710802]
[1768333529784,6.24551102,3202.3,3201.8,1.06710802]
[1768333530079,7.58109768,3202.3,3201.8,1.06710802]
[1768333530276,4.45834217,3202.3,3201.8,1.06710802]
[1768333530469,7.58109768,3202.3,3201.8,1.06710802]
[1768333531847,4.45834217,3202.3,3201.8,1.06710802]
[1768333532060,3.12269548,3202.4,3201.8,1.06710802]
[1768333532258,3.12269548,3202.4,3201.8,7.02902054]
[1768333532776,3.36747791,3202.6,3202.1,4.67593545]
[1768333532777,0.245,3202.6,3202.1,4.67593545]
[1768333532970,0.245,3202.6,3202.1,4.67673577]
[1768333533676,3.36746299,3202.6,3202.1,4.67673577]
[1768333533881,6.48992598,3202.6,3202.1,4.67673577]
[1768333534372,3.36746299,3202.6,3202.1,5.96271284]
[1768333534575,6.48992598,3202.6,3202.1,0.00080032]
[1768333535984,1.26495875,3202.5,3202.1,0.00080032]
[1768333536385,1.26495875,3202.5,3202.4,0.001]
[1768333537196,6.48992598,3202.6,3202.4,0.001]
[1768333537887,3.36746299,3202.6,3202.4,0.001]
[1768333538143,3.36746299,3202.6,3201.8,5.74304347]
[1768333538144,1.26495875,3202.4,3201.8,1.06710802]
[1768333538277,1.26495875,3202.2,3201.1,1.31130856]
[1768333538451,1.26495875,3202.2,3201.4,1.31130856]
[1768333538649,1.26575907,3202.5,3201.4,1.31130856]
[1768333538855,1.26575907,3202.5,3201.6,1.31130856]
[1768333539056,1.26575907,3202.5,3201.6,0.5987244]
[1768333539285,1.26575907,3202.5,3201.7,0.02281942]
[1768333539490,1.26575907,3202.5,3201.8,4.67593545]
[1768333539671,1.26575907,3202.5,3201.9,0.02281627]
[1768333539879,3.122658,3202.4,3201.9,0.02281627]
[1768333540079,4.38761675,3202.4,3201.8,4.67593545]
[1768333540281,3.122658,3202.4,3201.8,6.64584085]
[1768333540461,3.122658,3202.4,3201.9,1.33412569]
[1768333541388,3.122658,3202.4,3201.9,1.33412483]
[1768333541589,3.12339811,3202.5,3201.9,1.33412483]
[1768333545500,0.00080032,3202.5,3201.9,1.33412483]
[1768333545701,3.12429577,3202.8,3201.9,1.33412483]
[1768333545702,0.002,3202.8,3202.2,1.31130856]
[1768333545904,0.002,3202.8,3202.5,1.31130856]
[1768333547921,0.002,3203.1,3202.7,1.31130856]
[1768333549286,0.002,3203.1,3202.8,1.31130856]
[1768333549490,0.002,3203.1,3203.0,1.31130856]
[1768333549795,0.002,3203.1,3202.7,1.31130856]
[1768333551006,0.002,3203.1,3202.6,0.245]
[1768333552533,0.002,3203.1,3202.6,1.55630856]
[1768333555541,0.002,3203.1,3202.7,1.33410705]
[1768333555756,0.002,3203.1,3202.8,0.15791071]
[1768333555955,0.002,3203.1,3202.8,1.46921927]
[1768333556297,0.002,3203.1,3202.8,0.15791071]
[1768333556537,1.26695875,3203.1,3202.7,0.245]
[1768333557751,0.002,3203.1,3202.7,0.245]
[1768333558304,0.002,3203.1,3202.6,0.245]
[1768333560129,0.002,3202.8,3202.6,0.245]
[1768333561202,0.002,3202.8,3202.5,0.245]
[1768333561606,0.002,3202.8,3202.5,2.02431331]
[1768333561918,0.002,3202.8,3202.6,1.31130856]
[1768333562133,0.002,3203.1,3202.7,0.02280108]
[1768333562457,0.002,3203.1,3202.5,3.83549162]
[1768333562602,0.002,3203.1,3202.6,0.02280006]
[1768333562802,0.002,3203.1,3202.7,0.98455357]
[1768333563634,0.002,3203.1,3202.8,0.02279691]
[1768333564227,0.002,3203.1,3202.7,0.98455357]
[1768333567947,0.002,3203.1,3202.7,2.32161702]
[1768333568310,1.24651007,3203.7,3203.0,6.0129989]
[1768333568613,1.24651007,3203.5,3203.1,0.60129989]
[1768333568805,1.24651007,3203.3,3203.0,0.245]
[1768333569001,1.24651007,3203.3,3202.6,3.12246045]
[1768333569236,1.24651007,3203.3,3202.8,0.245]
[1768333571953,1.24651007,3203.5,3202.8,4.70430965]
[1768333572158,0.002,3203.1,3202.9,1.35985534]
[1768333572325,1.24651007,3203.8,3203.0,0.47271015]
[1768333572653,1.24651007,3203.8,3202.9,1.33706345]
[1768333572838,1.24651007,3203.6,3203.1,0.02278615]
[1768333573051,1.24651007,3203.6,3202.9,1.33706345]
[1768333574850,4.3680589,3203.6,3202.9,1.33706345]
[1768333575932,4.3680589,3203.6,3202.8,0.245]
[1768333575933,7.48960773,3203.6,3202.8,0.245]
[1768333576137,1.24651007,3203.5,3202.8,0.58174301]
[1768333576638,1.24651007,3203.5,3202.8,0.245]
[1768333576840,4.36814077,3203.5,3202.8,0.245]
[1768333577429,4.36814077,3203.5,3202.7,4.45942581]
[1768333577630,4.36814077,3203.5,3202.8,0.245]
[1768333577958,4.36814077,3203.5,3202.7,4.45942581]
[1768333578172,4.36814077,3203.5,3202.9,0.245]
[1768333579262,3.12153062,3203.6,3202.9,0.245]
[1768333579771,4.36968473,3203.6,3202.9,0.245]
[1768333582171,1.24815411,3204.0,3203.1,1.2535705]
[1768333582380,1.24815411,3203.9,3203.2,0.02278286]
[1768333582536,1.24815411,3203.9,3203.0,0.02278286]
[1768333582874,1.24815411,3203.9,3203.1,0.46435223]
[1768333583204,1.24815411,3203.9,3203.1,1.71792273]
[1768333583575,0.002,3203.3,3203.1,1.71792273]
[1768333583740,0.002,3203.6,3203.2,1.2535705]
[1768333584480,0.002,3203.6,3203.2,4.37542433]
[1768333584680,0.002,3203.6,3203.3,0.50676239]
[1768333584881,0.002,3203.6,3203.3,1.76033289]
[1768333585048,0.002,3203.6,3203.3,1.73754816]
[1768333585240,0.002,3203.6,3203.4,0.245]
[1768333586775,0.002,3203.6,3203.3,0.48397766]
[1768333586942,0.002,3203.6,3203.3,0.245]
[1768333587148,1.25015411,3203.6,3203.3,0.245]
[1768333587482,0.002,3203.6,3203.3,0.245]
[1768333588993,0.002,3203.6,3203.0,4.37562471]
[1768333589150,0.002,3203.6,3203.3,0.245]
[1768333590483,0.002,3203.6,3203.0,1.2535705]
[1768333590734,0.002,3203.6,3203.1,0.68256964]
[1768333590865,0.002,3203.6,3203.1,0.245]
[1768333591049,0.002,3203.6,3202.9,4.37573708]
[1768333591245,1.25015411,3203.6,3203.0,0.245]
[1768333591683,1.25015411,3203.6,3203.1,0.245]
[1768333594301,1.24815411,3203.5,3202.4,0.001]
[1768333594510,1.24815411,3203.5,3202.8,3.12226685]
[1768333594691,1.24815411,3203.5,3202.9,0.31222669]
[1768333595467,1.32503859,3203.4,3203.1,0.001]
[1768333595718,1.32503859,3203.4,3202.5,0.245]
[1768333595910,1.32503859,3203.2,3202.5,0.245]
[1768333596213,1.32503859,3203.2,3202.5,3.36754495]
[1768333597030,1.32503859,3203.2,3202.5,3.36755024]
[1768333597314,1.32503859,3203.2,3202.6,0.245]
[1768333597719,1.32503859,3203.1,3202.6,0.245]
[1768333602411,1.32503859,3203.1,3202.4,0.001]
[1768333602412,1.32503859,3203.0,3202.4,0.001]
[1768333602914,1.32503859,3202.6,3201.4,1.3117235]
[1768333603101,1.32503859,3202.4,3201.4,1.5567235]
[1768333603777,1.32503859,3202.4,3201.4,4.68031515]
[1768333603977,1.32503859,3202.4,3201.4,3.36859165]
[1768333604189,1.32503859,3202.4,3201.5,1.3117235]
[1768333605853,3.12275551,3202.3,3201.5,1.3117235]
[1768333606777,3.12275551,3202.3,3201.6,1.3117235]
[1768333607399,3.12270367,3202.4,3201.8,0.001]
[1768333607605,4.44774226,3202.4,3201.8,0.001]
[1768333609516,3.12270367,3202.4,3201.8,1.3127235]
[1768333610087,3.12336089,3202.5,3201.8,1.3127235]
[1768333610299,3.76524475,3202.5,3201.8,1.3127235]
[1768333610819,0.0008004,3202.5,3202.0,1.3117235]
[1768333611118,0.0008004,3202.5,3202.2,1.3117235]
[1768333611300,0.0008004,3202.5,3202.4,1.3117235]
[1768333611483,0.0008004,3202.5,3202.1,0.245]
[1768333611684,1.32583899,3202.5,3201.8,0.001]
[1768333611929,0.75708382,3202.4,3201.8,0.001]
[1768333612096,3.87981381,3202.4,3201.8,0.001]
[1768333612298,3.87981381,3202.4,3201.8,1.3127235]
[1768333612905,1.32503859,3202.3,3201.8,0.001]
[1768333613100,7.0025438,3202.4,3201.8,0.001]
[1768333613422,0.83283828,3202.3,3201.8,0.001]
[1768333614115,3.95567988,3202.3,3201.8,0.001]
[1768333614319,1.32503859,3202.2,3201.8,0.001]
[1768333615325,4.44790796,3202.2,3201.8,0.001]
[1768333616325,0.83283828,3202.3,3201.8,0.001]
[1768333616502,0.0008004,3202.5,3201.8,1.3355422]
[1768333616698,0.0008004,3202.5,3201.8,1.3127235]
[1768333617401,0.0008004,3202.5,3201.8,4.43592773]
[1768333617742,4.44701417,3203.1,3202.2,1.3117235]
[1768333618037,4.44701417,3203.1,3202.3,1.5567235]
[1768333618340,1.32503859,3203.0,3202.3,0.245]
[1768333618932,6.2440164,3203.1,3202.3,1.5567235]
[1768333619344,6.24575624,3203.2,3202.3,1.5567235]
[1768333619495,3.12387812,3203.2,3202.3,1.5567235]
[1768333619843,3.12387812,3203.2,3202.5,1.3117235]
[1768333620011,6.24575624,3203.2,3202.5,1.3117235]
[1768333620541,7.57079483,3203.2,3202.5,1.3117235]
[1768333620743,7.57079483,3203.2,3202.3,1.5567235]
[1768333620971,0.002,3202.5,3202.2,0.245]
[1768333621319,0.002,3202.5,3202.2,1.5567235]
[1768333621550,0.002,3202.5,3202.2,1.3117235]
[1768333621740,0.002,3202.5,3202.2,1.5567235]
[1768333623552,3.12203875,3203.1,3202.3,1.3117235]
[1768333623853,4.44707734,3203.1,3202.4,1.77967905]
[1768333624426,3.12203875,3203.1,3202.5,1.3117235]
[1768333624621,0.002,3203.2,3202.5,1.3117235]
[1768333624622,4.44895206,3203.2,3202.5,1.3117235]
[1768333624941,0.002,3203.2,3202.5,1.2126308]
[1768333625142,0.002,3203.2,3202.6,0.63548963]
[1768333625143,1.27038271,3203.1,3202.6,0.63548963]
[1768333625323,1.27038271,3203.1,3202.6,0.245]
[1768333625522,1.27038271,3203.0,3202.6,0.245]
[1768333625749,4.39431394,3203.2,3202.6,0.245]
[1768333626141,3.12393123,3203.2,3202.6,1.4576308]
[1768333626347,0.002,3203.2,3202.6,1.4576308]
[1768333626641,0.002,3203.2,3202.7,1.2126308]
[1768333626825,0.002,3203.2,3202.9,1.2126308]
[1768333628157,0.002,3203.2,3202.7,1.25419063]
[1768333629167,0.002,3203.2,3202.6,0.245]
[1768333629781,0.002,3203.2,3202.6,1.49919063]
[1768333629965,0.002,3203.2,3202.7,1.25419063]
[1768333630171,0.002,3203.2,3202.8,0.46216212]
[1768333630783,0.002,3203.2,3202.9,0.245]
[1768333631287,0.002,3203.2,3202.9,1.49919063]
[1768333631472,0.002,3203.3,3202.9,1.49919063]
[1768333631854,0.002,3203.3,3202.9,0.245]
[1768333632078,1.24305766,3203.3,3203.0,0.245]
[1768333632467,1.24305766,3203.3,3202.9,0.245]
[1768333633589,0.002,3203.0,3202.9,0.245]
[1768333634371,0.002,3203.3,3202.9,0.245]
[1768333635658,1.24305766,3203.3,3202.9,0.245]
[1768333636507,1.30018319,3203.2,3202.8,0.245]
[1768333636669,1.30018319,3203.2,3202.4,1.25419063]
[1768333636670,1.30018319,3203.2,3202.5,3.12248601]
[1768333636864,1.30018319,3203.2,3202.6,0.68266766]
[1768333638259,3.12379919,3203.3,3202.6,1.88702517]
[1768333638683,0.002,3203.3,3202.6,5.00947754]
[1768333638996,0.002,3203.3,3202.7,1.20435751]
[1768333639194,3.12381364,3203.3,3202.8,0.245]
[1768333639500,0.002,3203.3,3202.8,0.245]
[1768333639864,3.12379353,3203.3,3202.8,0.245]
[1768333640897,0.002,3203.3,3202.8,0.245]
[1768333643182,1.30218319,3203.3,3202.4,1.20435751]
[1768333643738,1.30218319,3203.3,3202.5,0.26779991]
[1768333643926,1.30218319,3203.3,3202.5,5.05418627]
[1768333644331,1.30218319,3203.3,3202.5,5.03138636]
[1768333644701,1.30218319,3203.3,3202.6,0.02279834]
[1768333644899,0.002,3203.3,3202.6,1.22715585]
[1768333645206,0.002,3203.3,3202.6,1.20435751]
[1768333645412,1.30218319,3203.3,3202.9,0.001]
[1768333645608,1.30218319,3203.0,3202.9,0.001]
[1768333646931,1.30018319,3202.9,3202.5,0.245]
[1768333647300,0.002,3203.0,3202.3,1.44935751]
[1768333647497,0.002,3203.0,3202.3,1.20435751]
[1768333647737,3.12408049,3203.0,3202.4,0.245]
[1768333649017,0.002,3203.0,3202.4,0.245]
[1768333649440,1.30218319,3203.0,3202.4,0.245]
[1768333650927,1.30218319,3203.0,3202.1,3.12374731]
[1768333650928,1.30018319,3202.9,3202.1,0.00080048]
[1768333651152,8.24092327,3203.0,3201.3,1.20435751]
[1768333651153,1.30018319,3202.2,3201.3,1.20435751]
[1768333651556,1.30018319,3202.2,3201.3,4.32803999]
[1768333652035,1.30018319,3202.2,3201.4,4.3279688]
[1768333652238,1.30018319,3202.2,3201.4,1.20435751]
[1768333652456,1.30018319,3202.2,3201.2,4.57314783]
[1768333652625,1.30018319,3202.2,3201.3,3.12369118]
[1768333652827,1.30018319,3202.1,3201.3,3.12369118]
[1768333653026,1.30018319,3202.1,3201.2,4.57314853]
[1768333653364,1.30018319,3202.1,3201.3,3.12370789]
[1768333653859,1.30018319,3202.1,3201.4,3.12361053]
[1768333654048,1.30018319,3202.1,3201.5,1.24947417]
[1768333654268,1.30018319,3202.1,3201.5,1.68678264]
[1768333654429,1.30018319,3202.1,3201.5,1.24947417]
[1768333654636,1.30018319,3202.1,3201.5,1.00447417]
[1768333654853,1.18846515,3201.9,3201.5,1.24947417]
[1768333657269,3.12304855,3202.0,3201.5,1.24947417]
[1768333657665,4.31146299,3202.1,3201.8,0.001]
[1768333659596,1.18846515,3202.0,3201.8,0.001]
[1768333660774,1.18846515,3202.2,3201.8,0.001]
[1768333660975,3.12337416,3202.5,3201.8,5.87183858]
[1768333661174,3.12337416,3202.5,3201.9,1.19642137]
[1768333661464,0.00080048,3202.5,3201.9,1.19642137]
[1768333661891,0.00080048,3202.5,3201.8,0.59046596]
[1768333662299,1.18926563,3202.5,3201.9,0.02281627]
[1768333662489,1.18926563,3202.5,3201.8,0.59046596]
[1768333663270,1.18926563,3202.5,3201.9,0.02281627]
[1768333663597,4.31186946,3202.5,3201.8,0.59046596]
[1768333663900,4.31186946,3202.5,3201.9,0.02281627]
[1768333664399,1.18846515,3202.4,3201.8,0.001]
[1768333665372,4.31121825,3202.4,3201.8,0.001]
[1768333666119,1.18846515,3202.4,3201.8,0.001]
[1768333666325,4.31113064,3202.4,3201.8,0.001]
[1768333667259,0.00080048,3202.5,3201.8,1.19742137]
[1768333667536,0.00080048,3202.5,3201.9,1.21923764]
[1768333667897,0.00080048,3202.5,3202.0,1.44142137]
[1768333668533,0.00080048,3202.5,3202.2,1.19642137]
[1768333669698,0.002,3202.4,3202.2,1.19642137]
[1768333670519,0.002,3202.4,3202.0,0.4588466]
[1768333670831,0.002,3202.4,3202.1,0.245]
[1768333673433,1.19046515,3202.4,3201.9,0.245]
[1768333673732,1.18846515,3202.3,3201.8,0.001]
[1768333674051,1.18846515,3202.3,3201.8,0.246]
[1768333675624,1.18846515,3201.8,3200.4,1.19642137]
[1768333675930,3.12285303,3202.2,3201.3,1.19642137]
[1768333676133,3.43533476,3202.3,3201.5,1.19642137]
[1768333676304,3.12278448,3202.3,3201.6,1.19642137]
[1768333676503,3.12278448,3202.3,3201.8,1.19642137]
[1768333676733,3.12278448,3202.3,3201.9,0.02281799]
[1768333677127,3.12470312,3202.4,3201.9,0.02281799]
[1768333677532,0.002,3202.4,3201.9,0.02281799]
[1768333677741,0.002,3202.4,3201.9,1.21923936]
[1768333678240,0.002,3202.4,3201.9,1.21923764]
[1768333679240,0.002,3202.4,3201.9,1.19642137]
[1768333679535,0.002,3202.4,3201.9,1.42208816]
[1768333679736,0.002,3202.4,3201.9,0.22566679]
[1768333680126,0.002,3202.4,3201.9,4.54523378]
[1768333680317,0.002,3203.0,3202.2,1.19642137]
[1768333680517,0.002,3203.0,3202.4,4.67441721]
[1768333680723,0.002,3203.0,3202.5,0.61158386]
[1768333681823,0.002,3202.4,3202.3,1.44142137]
[1768333682035,0.002,3203.0,3202.3,1.44142137]
[1768333682342,0.002,3203.0,3202.3,4.5641445]
[1768333682544,0.002,3203.0,3202.3,4.58694929]
[1768333683629,0.002,3203.0,3202.3,9.2613665]
[1768333683813,0.002,3203.0,3202.4,1.23842105]
[1768333684330,0.002,3203.0,3202.4,1.26122426]
[1768333684538,0.002,3203.0,3202.4,1.23842105]
[1768333684714,0.002,3203.0,3202.3,4.5641687]
[1768333688190,0.002,3203.3,3202.7,4.67441721]
[1768333688480,0.002,3203.3,3202.8,0.245]
[1768333688831,1.26557473,3203.3,3202.8,0.245]
[1768333689770,0.002,3203.3,3202.8,0.245]
[1768333689955,1.26557473,3203.5,3202.9,0.61060253]
[1768333690454,1.26357473,3203.4,3202.9,0.61060253]
[1768333691853,4.38526589,3203.4,3202.9,0.61060253]
[1768333692053,4.38526589,3203.4,3202.8,0.245]
[1768333692254,1.26357473,3203.4,3202.8,0.245]
[1768333693436,0.002,3203.1,3202.8,0.245]
[1768333694282,0.002,3203.1,3202.4,3.12263772]
[1768333694283,1.26557473,3203.1,3202.3,4.30933171]
[1768333694564,1.26557473,3203.1,3202.4,0.81593317]
[1768333694742,1.26557473,3203.1,3202.5,0.245]
[1768333697565,1.15572377,3203.0,3202.5,0.245]
[1768333698663,1.15572377,3203.0,3202.2,3.12281586]
[1768333698860,1.15572377,3203.0,3202.4,0.245]
[1768333701068,1.15572377,3202.9,3202.4,0.245]
[1768333703170,1.15572377,3202.9,3202.1,3.12371507]
[1768333703375,1.15572377,3202.8,3202.2,3.36785263]
[1768333703745,1.15572377,3202.8,3202.3,3.12275334]
[1768333703948,1.15572377,3202.8,3202.2,3.36780403]
[1768333704974,1.15572377,3203.0,3202.2,4.63509733]
[1768333705356,1.15572377,3203.0,3202.2,7.75795036]
[1768333705560,1.15572377,3203.0,3202.3,0.84037096]
[1768333705762,1.15572377,3203.0,3202.6,0.001]
[1768333707040,0.002,3203.4,3202.7,1.5122933]
[1768333707243,0.002,3203.4,3202.8,1.2672933]
[1768333707873,0.002,3203.4,3202.9,0.245]
[1768333708267,0.002,3203.4,3202.9,1.5122933]
[1768333708442,4.27877801,3204.1,3203.2,1.2672933]
[1768333708646,1.15772377,3204.1,3203.3,9.06520971]
[1768333708865,1.15772377,3204.1,3203.4,1.15152097]
[1768333709064,4.27877156,3204.1,3203.4,1.15152097]
[1768333709258,4.27877156,3204.1,3203.4,0.245]
[1768333709459,1.15572377,3204.0,3203.4,0.245]
[1768333710662,4.27685786,3204.0,3203.4,0.245]
[1768333711596,3.12303788,3204.1,3203.4,1.5122933]
[1768333711806,1.15572377,3204.0,3203.4,0.245]
[1768333712801,4.27682626,3204.0,3203.4,0.245]
[1768333713373,1.15572377,3203.9,3203.4,0.245]
[1768333718102,0.002,3203.6,3203.4,0.245]
[1768333719601,1.15937146,3203.6,3202.9,3.12212338]
[1768333719924,1.15937146,3203.6,3203.0,0.67405113]
[1768333720128,1.15937146,3203.6,3203.0,0.245]
[1768333721007,1.15937146,3203.6,3202.9,0.245]
[1768333722102,1.15737146,3203.5,3202.9,0.245]
[1768333722631,1.15737146,3203.5,3202.7,0.001]
[1768333722832,1.15737146,3203.5,3202.7,0.246]
[1768333723030,1.15737146,3203.3,3202.7,0.246]
[1768333723881,1.15737146,3203.3,3202.7,0.001]
[1768333724088,1.15737146,3203.1,3202.7,0.001]
[1768333726207,4.27916025,3203.3,3202.7,0.001]
[1768333726417,1.15737146,3203.2,3202.7,0.001]
[1768333726804,1.15737146,3203.1,3202.7,0.001]
[1768333727117,0.81411841,3203.2,3202.7,0.001]
[1768333727324,3.12178879,3203.3,3202.7,0.001]
[1768333727520,3.12165094,3203.5,3202.7,1.41438793]
[1768333727720,3.12165094,3203.5,3202.7,1.43718383]
[1768333727921,0.002,3203.6,3202.8,1.16838793]
[1768333728235,3.12309096,3204.1,3203.1,1.16838793]
[1768333728439,6.24418192,3204.1,3203.2,2.31005018]
[1768333728639,1.15937146,3203.9,3203.2,1.14166225]
[1768333728841,1.19638762,3203.8,3202.7,0.001]
[1768333729049,1.19638762,3203.8,3202.9,0.245]
[1768333729638,1.15737146,3203.8,3202.9,0.245]
[1768333729836,1.15737146,3203.8,3203.0,0.001]
[1768333730638,4.27876235,3203.7,3203.0,0.001]
[1768333730948,7.40015324,3203.7,3203.0,0.001]
[1768333733605,1.15737146,3203.6,3203.0,0.001]
[1768333735563,4.27895722,3203.5,3203.0,0.001]
[1768333736547,3.12158576,3203.5,3203.0,0.001]
[1768333738447,1.15737146,3203.6,3203.0,0.001]
[1768333740452,3.12158576,3203.5,3203.0,0.001]
[1768333740751,3.12152854,3203.6,3203.0,0.001]
[1768333740924,3.12152854,3203.6,3203.0,1.62305176]
[1768333741359,3.12152854,3203.6,3203.0,1.16938793]
[1768333741537,6.24305708,3203.6,3203.0,1.16938793]
[1768333741735,6.24305708,3203.6,3203.0,0.001]
[1768333741941,6.24305708,3203.6,3203.3,0.001]
[1768333742440,3.12152854,3203.6,3203.3,0.001]
[1768333743215,3.1214346,3203.7,3203.3,0.001]
[1768333743538,6.24263144,3203.8,3203.3,0.001]
[1768333743726,1.15737146,3203.7,3203.3,0.001]
[1768333744519,1.15737146,3203.3,3202.6,0.001]
[1768333744719,4.27944451,3203.0,3202.6,0.001]
[1768333744917,1.23083436,3203.4,3202.6,1.25116967]
[1768333745146,1.23083436,3203.4,3202.7,1.25116967]
[1768333745352,1.97823495,3203.3,3202.7,0.001]
[1768333745551,1.23083436,3203.2,3202.7,0.001]
[1768333747156,4.35280994,3203.1,3202.7,0.001]
[1768333747353,7.47478552,3203.1,3202.7,0.001]
[1768333747663,1.23083436,3203.0,3202.7,0.001]
[1768333748427,1.97831291,3203.0,3202.7,0.001]
[1768333749245,5.10039995,3203.0,3202.7,0.001]
[1768333749567,8.22248699,3203.0,3202.7,0.001]
[1768333749860,1.23083436,3202.9,3202.7,0.001]
[1768333751364,3.86956559,3203.0,3202.7,0.001]
[1768333752258,5.10039995,3203.0,3202.7,0.001]
[1768333752559,2.05307403,3202.9,3202.7,0.001]
[1768333752766,1.23083436,3202.8,3202.7,0.001]
[1768333752964,1.23083436,3202.8,3202.1,0.00080056]
[1768333753468,1.23083436,3202.6,3202.1,0.00080056]
[1768333755364,4.35332625,3202.6,3202.1,0.00080056]
[1768333755847,1.23083436,3202.5,3202.1,0.00080056]
[1768333756260,1.18170925,3202.4,3202.1,0.00080056]
[1768333757651,4.30444189,3202.4,3202.1,0.00080056]
[1768333758668,1.18170925,3202.4,3202.1,0.00080056]
[1768333758963,0.74757755,3202.5,3202.1,0.00080056]
[1768333759141,1.18170925,3202.6,3202.1,0.00080056]
[1768333759341,0.245,3202.9,3202.1,0.00080056]
[1768333759342,4.30397726,3202.8,3202.1,0.00080056]
[1768333759757,7.42626945,3202.8,3202.1,0.00080056]
[1768333759949,1.18170925,3202.7,3202.1,0.00080056]
[1768333761974,3.12246299,3202.6,3202.1,0.00080056]